[Event "Titled Tuesday Blitz May 23 Early 2023"]
[White "Kramnik, Vladimir"]
[Black "Bortnyk, Olexandr"]
[WhiteFideId "4101588"]
[BlackFideId "14120828"]
[WhiteElo "2703"]
[BlackElo "2734"]
[Result "0-1"]
[Round "10"]
[TimeControl "180+2"]
[Date "2023.05.23"]
[WhiteClock "0:00:00"]
[BlackClock "0:00:10"]

1. e4 {[%clk 0:03:00]}  Nf6 {[%clk 0:03:00]} 2. e5 {[%clk 0:03:01]}  Nd5 {[%clk 0:03:00]} 3. d4 {[%clk 0:03:01]}  d6 {[%clk 0:03:01]} 4. Nf3 {[%clk 0:03:01]}  dxe5 {[%clk 0:03:02]} 5. Nxe5 {[%clk 0:03:01]}  c6 {[%clk 0:03:02]} 6. Be2 {[%clk 0:03:01]}  Bf5 {[%clk 0:03:02]} 7. O-O {[%clk 0:02:59]}  Nd7 {[%clk 0:03:02]} 8. Nf3 {[%clk 0:02:55]}  e6 {[%clk 0:03:03]} 9. c4 {[%clk 0:02:55]}  N5f6 {[%clk 0:03:03]} 10. Nc3 {[%clk 0:02:54]}  Bd6 {[%clk 0:03:03]} 11. Nh4 {[%clk 0:02:54]}  Bg6 {[%clk 0:03:03]} 12. g3 {[%clk 0:02:54]}  O-O {[%clk 0:03:03]} 13. Be3 {[%clk 0:02:55]}  e5 {[%clk 0:02:54]} 14. d5 {[%clk 0:02:54]}  Qc7 {[%clk 0:02:52]} 15. a3 {[%clk 0:02:49]}  a5 {[%clk 0:02:51]} 16. Rc1 {[%clk 0:02:43]}  Rfd8 {[%clk 0:02:27]} 17. Nxg6 {[%clk 0:02:39]}  hxg6 {[%clk 0:02:28]} 18. Bf3 {[%clk 0:02:35]}  Bc5 {[%clk 0:01:56]} 19. Qe2 {[%clk 0:02:11]}  Bd4 {[%clk 0:01:53]} 20. b4 {[%clk 0:02:02]}  axb4 {[%clk 0:01:53]} 21. axb4 {[%clk 0:02:01]}  Ra3 {[%clk 0:01:52]} 22. dxc6 {[%clk 0:01:24]}  bxc6 {[%clk 0:01:43]} 23. Bd2 {[%clk 0:01:12]}  Rb3 {[%clk 0:01:08]} 24. Qd1 {[%clk 0:00:47]}  Ra3 {[%clk 0:00:42]} 25. Qc2 {[%clk 0:00:40]}  Nb6 {[%clk 0:00:33]} 26. Be2 {[%clk 0:00:35]}  Qd7 {[%clk 0:00:28]} 27. Rfd1 {[%clk 0:00:34]}  Qh3 {[%clk 0:00:28]} 28. Be1 {[%clk 0:00:25]}  Rda8 {[%clk 0:00:21]} 29. Bf3 {[%clk 0:00:15]}  Nxc4 {[%clk 0:00:16]} 30. Bg2 {[%clk 0:00:12]}  Qe6 {[%clk 0:00:09]} 31. Nb1 {[%clk 0:00:11]}  Nb2 {[%clk 0:00:05]} 32. Rxd4 {[%clk 0:00:10]}  exd4 {[%clk 0:00:04]} 33. Nxa3 {[%clk 0:00:10]}  Na4 {[%clk 0:00:02]} 34. Qxc6 {[%clk 0:00:09]}  Qxc6 {[%clk 0:00:01]} 35. Bxc6 {[%clk 0:00:10]}  Ra7 {[%clk 0:00:01]} 36. b5 {[%clk 0:00:08]}  Nb6 {[%clk 0:00:01]} 37. Nc4 {[%clk 0:00:08]}  Nbd5 {[%clk 0:00:01]} 38. Bxd5 {[%clk 0:00:07]}  Nxd5 {[%clk 0:00:02]} 39. Rb1 {[%clk 0:00:07]}  Rc7 {[%clk 0:00:01]} 40. b6 {[%clk 0:00:07]}  Rb7 {[%clk 0:00:02]} 41. Kf1 {[%clk 0:00:06]}  d3 {[%clk 0:00:02]} 42. Rb3 {[%clk 0:00:06]}  f5 {[%clk 0:00:02]} 43. Rxd3 {[%clk 0:00:06]}  Nxb6 {[%clk 0:00:02]} 44. Rb3 {[%clk 0:00:06]}  Rc7 {[%clk 0:00:02]} 45. Nxb6 {[%clk 0:00:06]}  Rb7 {[%clk 0:00:02]} 46. Rb2 {[%clk 0:00:05]}  Kh7 {[%clk 0:00:02]} 47. Kg2 {[%clk 0:00:04]}  Rc7 {[%clk 0:00:03]} 48. Bd2 {[%clk 0:00:04]}  Re7 {[%clk 0:00:03]} 49. Be3 {[%clk 0:00:04]}  Re5 {[%clk 0:00:03]} 50. Nc4 {[%clk 0:00:04]}  Re4 {[%clk 0:00:04]} 51. Nd2 {[%clk 0:00:04]}  Re6 {[%clk 0:00:05]} 52. Nf3 {[%clk 0:00:04]}  Re8 {[%clk 0:00:06]} 53. Ng5+ {[%clk 0:00:04]}  Kg8 {[%clk 0:00:07]} 54. Rb7 {[%clk 0:00:04]}  Rd8 {[%clk 0:00:08]} 55. Bc5 {[%clk 0:00:03]}  Rc8 {[%clk 0:00:08]} 56. Bd4 {[%clk 0:00:03]}  f4 {[%clk 0:00:09]} 57. Ne6 {[%clk 0:00:02]}  f3+ {[%clk 0:00:09]} 58. Kxf3 {[%clk 0:00:00]}  Kh7 {[%clk 0:00:10]} 0-1


[Site "https://www.chess.com"]

[Event "Titled Tuesday Blitz May 23 Early 2023"]
[White "Pranav Anand"]
[Black "Svane, Rasmus"]
[WhiteFideId "46626786"]
[BlackFideId "4657101"]
[WhiteElo "2389"]
[BlackElo "2601"]
[Result "1-0"]
[Round "10"]
[TimeControl "180+2"]
[Date "2023.05.23"]
[WhiteClock "0:00:20"]
[BlackClock "0:00:00"]

1. d4 {[%clk 0:03:00]}  Nf6 {[%clk 0:02:59]} 2. c4 {[%clk 0:03:01]}  e6 {[%clk 0:02:59]} 3. Nc3 {[%clk 0:03:02]}  Bb4 {[%clk 0:02:59]} 4. e3 {[%clk 0:03:02]}  O-O {[%clk 0:02:59]} 5. Bd3 {[%clk 0:03:03]}  d5 {[%clk 0:02:59]} 6. cxd5 {[%clk 0:03:03]}  exd5 {[%clk 0:03:00]} 7. a3 {[%clk 0:03:04]}  Bd6 {[%clk 0:02:57]} 8. Qc2 {[%clk 0:03:04]}  c6 {[%clk 0:02:52]} 9. Nge2 {[%clk 0:03:03]}  Re8 {[%clk 0:02:49]} 10. Bd2 {[%clk 0:03:02]}  Nbd7 {[%clk 0:02:44]} 11. f3 {[%clk 0:03:01]}  c5 {[%clk 0:02:37]} 12. O-O-O {[%clk 0:02:44]}  c4 {[%clk 0:02:31]} 13. Bf5 {[%clk 0:02:44]}  Nf8 {[%clk 0:01:37]} 14. g4 {[%clk 0:02:40]}  Bxf5 {[%clk 0:01:35]} 15. Qxf5 {[%clk 0:02:41]}  g6 {[%clk 0:01:30]} 16. Qc2 {[%clk 0:02:41]}  Bc7 {[%clk 0:01:17]} 17. g5 {[%clk 0:02:39]}  Nh5 {[%clk 0:01:15]} 18. e4 {[%clk 0:02:39]}  dxe4 {[%clk 0:01:14]} 19. fxe4 {[%clk 0:02:40]}  Ne6 {[%clk 0:01:13]} 20. Nd5 {[%clk 0:02:39]}  Bb6 {[%clk 0:00:57]} 21. Nxb6 {[%clk 0:02:03]}  axb6 {[%clk 0:00:55]} 22. d5 {[%clk 0:01:54]}  Nc5 {[%clk 0:00:46]} 23. Nc3 {[%clk 0:01:51]}  b5 {[%clk 0:00:47]} 24. Nxb5 {[%clk 0:01:38]}  Rxe4 {[%clk 0:00:44]} 25. Kb1 {[%clk 0:01:29]}  Re2 {[%clk 0:00:39]} 26. Qxc4 {[%clk 0:01:28]}  Qe7 {[%clk 0:00:36]} 27. Rhe1 {[%clk 0:01:14]}  Re4 {[%clk 0:00:30]} 28. d6 {[%clk 0:01:03]}  Qe5 {[%clk 0:00:19]} 29. Bc3 {[%clk 0:00:54]}  Qf5 {[%clk 0:00:19]} 30. Rxe4 {[%clk 0:00:46]}  Nxe4 {[%clk 0:00:20]} 31. Ka1 {[%clk 0:00:43]}  Nf4 {[%clk 0:00:15]} 32. d7 {[%clk 0:00:41]}  Rd8 {[%clk 0:00:11]} 33. Qc8 {[%clk 0:00:38]}  Qxg5 {[%clk 0:00:06]} 34. Ba5 {[%clk 0:00:35]}  Rxc8 {[%clk 0:00:05]} 35. dxc8=Q+ {[%clk 0:00:36]}  Kg7 {[%clk 0:00:06]} 36. Bc3+ {[%clk 0:00:32]}  Kh6 {[%clk 0:00:05]} 37. Nd6 {[%clk 0:00:30]}  Nxd6 {[%clk 0:00:02]} 38. Rxd6 {[%clk 0:00:31]}  Ne6 {[%clk 0:00:01]} 39. Qxb7 {[%clk 0:00:28]}  Qg1+ {[%clk 0:00:01]} 40. Ka2 {[%clk 0:00:29]}  Qxh2 {[%clk 0:00:02]} 41. Bd2+ {[%clk 0:00:23]}  Kg7 {[%clk 0:00:02]} 42. Rxe6 {[%clk 0:00:23]}  Qxd2 {[%clk 0:00:02]} 43. Re7 {[%clk 0:00:22]}  Qf4 {[%clk 0:00:00]} 44. Qe4 {[%clk 0:00:20]} 1-0


[Site "https://www.chess.com"]

[Event "Titled Tuesday Blitz May 23 Early 2023"]
[White "Zakhartsov, Vladimir"]
[Black "Hayrapetyan, Hovik"]
[WhiteFideId "4145097"]
[BlackFideId "13302639"]
[WhiteElo "2495"]
[BlackElo "2348"]
[Result "0-1"]
[Round "10"]
[TimeControl "180+2"]
[Date "2023.05.23"]
[WhiteClock "0:00:03"]
[BlackClock "0:00:11"]

1. e4 {[%clk 0:02:49]}  c5 {[%clk 0:02:59]} 2. Nf3 {[%clk 0:02:49]}  d6 {[%clk 0:03:00]} 3. g3 {[%clk 0:02:49]}  Nc6 {[%clk 0:02:57]} 4. Bg2 {[%clk 0:02:49]}  g6 {[%clk 0:02:54]} 5. O-O {[%clk 0:02:49]}  Bg7 {[%clk 0:02:54]} 6. c3 {[%clk 0:02:49]}  Nf6 {[%clk 0:02:50]} 7. Qe2 {[%clk 0:02:49]}  e5 {[%clk 0:02:43]} 8. h3 {[%clk 0:02:48]}  O-O {[%clk 0:02:41]} 9. Rd1 {[%clk 0:02:49]}  Re8 {[%clk 0:02:20]} 10. d3 {[%clk 0:02:47]}  h6 {[%clk 0:02:14]} 11. a3 {[%clk 0:02:47]}  d5 {[%clk 0:01:59]} 12. Nbd2 {[%clk 0:02:44]}  Be6 {[%clk 0:01:57]} 13. b4 {[%clk 0:02:43]}  Qc7 {[%clk 0:01:35]} 14. Bb2 {[%clk 0:02:19]}  b6 {[%clk 0:01:28]} 15. Nf1 {[%clk 0:02:15]}  Rad8 {[%clk 0:01:21]} 16. N3d2 {[%clk 0:02:15]}  d4 {[%clk 0:01:14]} 17. bxc5 {[%clk 0:02:07]}  bxc5 {[%clk 0:01:15]} 18. cxd4 {[%clk 0:02:06]}  Nxd4 {[%clk 0:01:13]} 19. Bxd4 {[%clk 0:02:02]}  cxd4 {[%clk 0:00:48]} 20. Rdc1 {[%clk 0:02:02]}  Qd7 {[%clk 0:00:41]} 21. Kh2 {[%clk 0:01:54]}  Rc8 {[%clk 0:00:42]} 22. Qd1 {[%clk 0:01:47]}  Rc3 {[%clk 0:00:39]} 23. Nb1 {[%clk 0:01:37]}  Bb3 {[%clk 0:00:31]} 24. Qd2 {[%clk 0:01:37]}  Rcc8 {[%clk 0:00:30]} 25. Rxc8 {[%clk 0:01:27]}  Rxc8 {[%clk 0:00:30]} 26. Qb2 {[%clk 0:01:27]}  Bc2 {[%clk 0:00:30]} 27. Nbd2 {[%clk 0:01:13]}  Bxd3 {[%clk 0:00:30]} 28. Rc1 {[%clk 0:01:14]}  Rxc1 {[%clk 0:00:29]} 29. Qxc1 {[%clk 0:01:15]}  Bf8 {[%clk 0:00:28]} 30. Nf3 {[%clk 0:01:02]}  Qd6 {[%clk 0:00:24]} 31. N1d2 {[%clk 0:00:43]}  Nxe4 {[%clk 0:00:22]} 32. Ne1 {[%clk 0:00:40]}  Nxf2 {[%clk 0:00:22]} 33. Kg1 {[%clk 0:00:39]}  e4 {[%clk 0:00:22]} 34. Kxf2 {[%clk 0:00:34]}  e3+ {[%clk 0:00:23]} 35. Kg1 {[%clk 0:00:34]}  exd2 {[%clk 0:00:21]} 36. Qxd2 {[%clk 0:00:35]}  Bf5 {[%clk 0:00:20]} 37. g4 {[%clk 0:00:35]}  Be6 {[%clk 0:00:21]} 38. a4 {[%clk 0:00:27]}  Qb4 {[%clk 0:00:21]} 39. Qxb4 {[%clk 0:00:26]}  Bxb4 {[%clk 0:00:20]} 40. Nd3 {[%clk 0:00:27]}  Bd2 {[%clk 0:00:20]} 41. Nc5 {[%clk 0:00:25]}  Be3+ {[%clk 0:00:18]} 42. Kh2 {[%clk 0:00:21]}  Bc4 {[%clk 0:00:17]} 43. Be4 {[%clk 0:00:21]}  a5 {[%clk 0:00:14]} 44. Kg3 {[%clk 0:00:20]}  Kg7 {[%clk 0:00:14]} 45. Kf3 {[%clk 0:00:13]}  Bd2 {[%clk 0:00:14]} 46. Bc2 {[%clk 0:00:10]}  Bb4 {[%clk 0:00:12]} 47. Nd3 {[%clk 0:00:09]}  Bd5+ {[%clk 0:00:11]} 48. Kf4 {[%clk 0:00:06]}  Bd6+ {[%clk 0:00:11]} 49. Ne5 {[%clk 0:00:03]}  f6 {[%clk 0:00:11]} 0-1


[Site "https://www.chess.com"]

[Event "Titled Tuesday Blitz May 23 Early 2023"]
[White "Drygalov, Andrey"]
[Black "Averjanov, Alexey"]
[WhiteFideId "24171735"]
[BlackFideId "14109867"]
[WhiteElo "2466"]
[BlackElo "2792"]
[Result "1-0"]
[Round "10"]
[TimeControl "180+2"]
[Date "2023.05.23"]
[WhiteClock "0:01:07"]
[BlackClock "0:00:03"]

1. e4 {[%clk 0:03:00]}  c6 {[%clk 0:02:59]} 2. Nf3 {[%clk 0:03:00]}  d5 {[%clk 0:03:00]} 3. d3 {[%clk 0:03:00]}  Qc7 {[%clk 0:03:00]} 4. exd5 {[%clk 0:02:57]}  cxd5 {[%clk 0:03:00]} 5. c4 {[%clk 0:02:58]}  Nf6 {[%clk 0:02:59]} 6. Nc3 {[%clk 0:02:59]}  e6 {[%clk 0:02:56]} 7. a3 {[%clk 0:02:59]}  Be7 {[%clk 0:02:52]} 8. g3 {[%clk 0:02:56]}  a6 {[%clk 0:02:44]} 9. Bf4 {[%clk 0:02:47]}  Qd8 {[%clk 0:02:37]} 10. Bg2 {[%clk 0:02:47]}  O-O {[%clk 0:02:37]} 11. O-O {[%clk 0:02:47]}  b6 {[%clk 0:02:36]} 12. cxd5 {[%clk 0:02:45]}  Nxd5 {[%clk 0:02:35]} 13. Nxd5 {[%clk 0:02:45]}  exd5 {[%clk 0:02:35]} 14. Ne5 {[%clk 0:02:45]}  Bb7 {[%clk 0:02:32]} 15. Rc1 {[%clk 0:02:44]}  f6 {[%clk 0:02:07]} 16. Ng4 {[%clk 0:02:30]}  Bd6 {[%clk 0:01:55]} 17. Bxd6 {[%clk 0:02:23]}  Qxd6 {[%clk 0:01:56]} 18. Ne3 {[%clk 0:02:24]}  Nd7 {[%clk 0:01:53]} 19. Nf5 {[%clk 0:02:24]}  Qe5 {[%clk 0:01:40]} 20. Qg4 {[%clk 0:02:22]}  g6 {[%clk 0:00:37]} 21. Nh6+ {[%clk 0:02:21]}  Kg7 {[%clk 0:00:38]} 22. Qxd7+ {[%clk 0:02:21]}  Kxh6 {[%clk 0:00:38]} 23. Qxb7 {[%clk 0:02:22]}  Qxb2 {[%clk 0:00:36]} 24. Rc7 {[%clk 0:02:18]}  Rh8 {[%clk 0:00:35]} 25. Qxd5 {[%clk 0:02:09]}  Rad8 {[%clk 0:00:33]} 26. Qf3 {[%clk 0:02:03]}  Qe5 {[%clk 0:00:28]} 27. Rc6 {[%clk 0:02:00]}  Kg7 {[%clk 0:00:26]} 28. Rxb6 {[%clk 0:02:00]}  Rd7 {[%clk 0:00:25]} 29. Rb7 {[%clk 0:02:00]}  Rd8 {[%clk 0:00:25]} 30. Qc6 {[%clk 0:01:59]}  Re7 {[%clk 0:00:22]} 31. Rxe7+ {[%clk 0:01:58]}  Qxe7 {[%clk 0:00:23]} 32. Qxa6 {[%clk 0:01:58]}  h5 {[%clk 0:00:21]} 33. h4 {[%clk 0:01:56]}  g5 {[%clk 0:00:21]} 34. hxg5 {[%clk 0:01:56]}  fxg5 {[%clk 0:00:22]} 35. Qc4 {[%clk 0:01:54]}  h4 {[%clk 0:00:22]} 36. Qe4 {[%clk 0:01:54]}  Qf6 {[%clk 0:00:21]} 37. Re1 {[%clk 0:01:38]}  Rd7 {[%clk 0:00:20]} 38. Qe5 {[%clk 0:01:37]}  hxg3 {[%clk 0:00:17]} 39. Qxf6+ {[%clk 0:01:32]}  Kxf6 {[%clk 0:00:18]} 40. fxg3 {[%clk 0:01:32]}  Rxd3 {[%clk 0:00:18]} 41. Rf1+ {[%clk 0:01:33]}  Kg7 {[%clk 0:00:15]} 42. Rf3 {[%clk 0:01:33]}  Rd1+ {[%clk 0:00:14]} 43. Bf1 {[%clk 0:01:34]}  Ra1 {[%clk 0:00:13]} 44. Rd3 {[%clk 0:01:34]}  Kf6 {[%clk 0:00:12]} 45. Kf2 {[%clk 0:01:34]}  Ke5 {[%clk 0:00:10]} 46. Be2 {[%clk 0:01:35]}  Ra2 {[%clk 0:00:10]} 47. Rb3 {[%clk 0:01:35]}  Ra1 {[%clk 0:00:09]} 48. Ke3 {[%clk 0:01:34]}  Rg1 {[%clk 0:00:08]} 49. Rb5+ {[%clk 0:01:34]}  Kf6 {[%clk 0:00:08]} 50. Kf2 {[%clk 0:01:21]}  Ra1 {[%clk 0:00:08]} 51. Rb3 {[%clk 0:01:21]}  Ke5 {[%clk 0:00:08]} 52. Kf3 {[%clk 0:01:21]}  Kf6 {[%clk 0:00:06]} 53. Kg4 {[%clk 0:01:20]}  Ra2 {[%clk 0:00:06]} 54. Bc4 {[%clk 0:01:17]}  Rc2 {[%clk 0:00:06]} 55. Rf3+ {[%clk 0:01:18]}  Kg7 {[%clk 0:00:05]} 56. Bb3 {[%clk 0:01:17]}  Rc5 {[%clk 0:00:04]} 57. Rf5 {[%clk 0:01:17]}  Rc3 {[%clk 0:00:03]} 58. Rxg5+ {[%clk 0:01:17]}  Kh6 {[%clk 0:00:04]} 59. Rb5 {[%clk 0:01:15]}  Rc5 {[%clk 0:00:04]} 60. Rxc5 {[%clk 0:01:07]}  Kg7 {[%clk 0:00:03]} 1-0


[Site "https://www.chess.com"]

[Event "Titled Tuesday Blitz May 23 Early 2023"]
[White "Molina, Roberto Junio Brito"]
[Black "Martinez Alcantara, Jose Eduardo"]
[WhiteFideId "2109450"]
[BlackFideId "3805662"]
[WhiteElo "2376"]
[BlackElo "2711"]
[Result "1-0"]
[Round "10"]
[TimeControl "180+2"]
[Date "2023.05.23"]
[WhiteClock "0:00:13"]
[BlackClock "0:00:09"]

1. d4 {[%clk 0:03:00]}  Nf6 {[%clk 0:02:59]} 2. Nf3 {[%clk 0:03:01]}  e6 {[%clk 0:02:58]} 3. e3 {[%clk 0:03:01]}  b6 {[%clk 0:02:58]} 4. Bd3 {[%clk 0:03:02]}  Bb7 {[%clk 0:02:59]} 5. O-O {[%clk 0:03:03]}  g6 {[%clk 0:03:00]} 6. Qe2 {[%clk 0:03:03]}  d5 {[%clk 0:02:59]} 7. Nbd2 {[%clk 0:03:03]}  Bg7 {[%clk 0:02:59]} 8. e4 {[%clk 0:03:03]}  O-O {[%clk 0:02:59]} 9. e5 {[%clk 0:02:59]}  Nfd7 {[%clk 0:03:00]} 10. c3 {[%clk 0:02:59]}  c5 {[%clk 0:03:00]} 11. a3 {[%clk 0:02:58]}  Nc6 {[%clk 0:03:01]} 12. b4 {[%clk 0:02:58]}  Qc7 {[%clk 0:03:00]} 13. Re1 {[%clk 0:02:55]}  Rae8 {[%clk 0:03:01]} 14. Nf1 {[%clk 0:02:51]}  cxd4 {[%clk 0:03:00]} 15. cxd4 {[%clk 0:02:51]}  f6 {[%clk 0:03:01]} 16. Bb2 {[%clk 0:02:44]}  fxe5 {[%clk 0:02:59]} 17. Nxe5 {[%clk 0:02:45]}  Ndxe5 {[%clk 0:02:57]} 18. dxe5 {[%clk 0:02:45]}  Qf7 {[%clk 0:02:48]} 19. b5 {[%clk 0:02:31]}  Na5 {[%clk 0:02:44]} 20. Ne3 {[%clk 0:02:30]}  Nb3 {[%clk 0:02:41]} 21. Rad1 {[%clk 0:02:29]}  Nc5 {[%clk 0:02:42]} 22. Bb1 {[%clk 0:02:23]}  Qf4 {[%clk 0:02:38]} 23. g3 {[%clk 0:02:17]}  Qf7 {[%clk 0:02:36]} 24. f4 {[%clk 0:02:10]}  Rc8 {[%clk 0:02:26]} 25. Ng4 {[%clk 0:02:00]}  Nd7 {[%clk 0:02:24]} 26. Bd4 {[%clk 0:01:59]}  Qe7 {[%clk 0:02:19]} 27. Qb2 {[%clk 0:01:56]}  Kh8 {[%clk 0:01:59]} 28. h4 {[%clk 0:01:42]}  Rc4 {[%clk 0:01:56]} 29. Ba2 {[%clk 0:01:38]}  Nc5 {[%clk 0:01:38]} 30. Bxc4 {[%clk 0:01:29]}  dxc4 {[%clk 0:01:39]} 31. Qb4 {[%clk 0:01:12]}  Rxf4 {[%clk 0:01:38]} 32. Nf6 {[%clk 0:01:00]}  Rf3 {[%clk 0:01:19]} 33. Kh2 {[%clk 0:00:51]}  Bd5 {[%clk 0:00:59]} 34. Rf1 {[%clk 0:00:31]}  Rb3 {[%clk 0:00:48]} 35. Qe1 {[%clk 0:00:31]}  Nd3 {[%clk 0:00:40]} 36. Qe2 {[%clk 0:00:29]}  Bb7 {[%clk 0:00:37]} 37. h5 {[%clk 0:00:25]}  g5 {[%clk 0:00:35]} 38. h6 {[%clk 0:00:24]}  Bf8 {[%clk 0:00:27]} 39. Qh5 {[%clk 0:00:22]}  Rxa3 {[%clk 0:00:24]} 40. Qxg5 {[%clk 0:00:19]}  Ra2+ {[%clk 0:00:24]} 41. Rf2 {[%clk 0:00:19]}  Rxf2+ {[%clk 0:00:22]} 42. Bxf2 {[%clk 0:00:18]}  Qf7 {[%clk 0:00:23]} 43. Be3 {[%clk 0:00:17]}  Bf3 {[%clk 0:00:07]} 44. Rf1 {[%clk 0:00:16]}  Be2 {[%clk 0:00:07]} 45. Ra1 {[%clk 0:00:15]}  c3 {[%clk 0:00:08]} 46. Rxa7 {[%clk 0:00:15]}  Qg6 {[%clk 0:00:08]} 47. Qxg6 {[%clk 0:00:13]}  hxg6 {[%clk 0:00:09]} 48. Rh7# {[%clk 0:00:13]} 1-0


[Site "https://www.chess.com"]

[Event "Titled Tuesday Blitz May 23 Early 2023"]
[White "Gharibyan, Mamikon"]
[Black "Cordova, Emilio"]
[WhiteFideId "13308300"]
[BlackFideId "3801497"]
[WhiteElo "2445"]
[BlackElo "2607"]
[Result "1-0"]
[Round "10"]
[TimeControl "180+2"]
[Date "2023.05.23"]
[WhiteClock "0:00:06"]
[BlackClock "0:00:10"]

1. b3 {[%clk 0:02:58]}  b6 {[%clk 0:02:59]} 2. Bb2 {[%clk 0:02:57]}  Bb7 {[%clk 0:03:00]} 3. c4 {[%clk 0:02:54]}  Nf6 {[%clk 0:02:59]} 4. Nf3 {[%clk 0:02:51]}  e6 {[%clk 0:02:59]} 5. g3 {[%clk 0:02:52]}  c5 {[%clk 0:02:59]} 6. Bg2 {[%clk 0:02:51]}  Be7 {[%clk 0:03:00]} 7. O-O {[%clk 0:02:51]}  O-O {[%clk 0:03:00]} 8. Nc3 {[%clk 0:02:50]}  d6 {[%clk 0:03:01]} 9. a3 {[%clk 0:02:46]}  Re8 {[%clk 0:03:00]} 10. b4 {[%clk 0:02:46]}  Bf8 {[%clk 0:03:00]} 11. Rb1 {[%clk 0:02:43]}  Nbd7 {[%clk 0:02:59]} 12. bxc5 {[%clk 0:02:42]}  dxc5 {[%clk 0:02:59]} 13. d3 {[%clk 0:02:41]}  a6 {[%clk 0:02:34]} 14. a4 {[%clk 0:02:39]}  a5 {[%clk 0:02:34]} 15. Bc1 {[%clk 0:02:37]}  Nb8 {[%clk 0:02:31]} 16. Qb3 {[%clk 0:02:30]}  Ra6 {[%clk 0:02:31]} 17. Nb5 {[%clk 0:01:57]}  Nfd7 {[%clk 0:02:19]} 18. Rd1 {[%clk 0:01:50]}  Qc8 {[%clk 0:02:02]} 19. Bf4 {[%clk 0:01:45]}  e5 {[%clk 0:02:02]} 20. Bd2 {[%clk 0:01:41]}  Nc6 {[%clk 0:02:01]} 21. Bc3 {[%clk 0:01:41]}  Nd4 {[%clk 0:01:59]} 22. Qb2 {[%clk 0:01:38]}  Re6 {[%clk 0:01:48]} 23. Qd2 {[%clk 0:01:24]}  Rh6 {[%clk 0:01:46]} 24. h4 {[%clk 0:01:13]}  Ra8 {[%clk 0:01:37]} 25. Ba1 {[%clk 0:01:12]}  Rf6 {[%clk 0:01:36]} 26. Ng5 {[%clk 0:01:07]}  Bxg2 {[%clk 0:01:34]} 27. Kxg2 {[%clk 0:01:08]}  Qc6+ {[%clk 0:01:35]} 28. Kg1 {[%clk 0:01:02]}  h6 {[%clk 0:01:30]} 29. Ne4 {[%clk 0:01:02]}  Rg6 {[%clk 0:01:30]} 30. h5 {[%clk 0:01:01]}  Re6 {[%clk 0:01:23]} 31. Qe1 {[%clk 0:00:45]}  f5 {[%clk 0:01:23]} 32. Nec3 {[%clk 0:00:45]}  Nf6 {[%clk 0:01:23]} 33. Nd5 {[%clk 0:00:45]}  Rd8 {[%clk 0:00:34]} 34. Nbc3 {[%clk 0:00:31]}  Nc2 {[%clk 0:00:30]} 35. Qf1 {[%clk 0:00:30]}  Nb4 {[%clk 0:00:30]} 36. e4 {[%clk 0:00:25]}  Nxh5 {[%clk 0:00:24]} 37. exf5 {[%clk 0:00:25]}  Red6 {[%clk 0:00:25]} 38. Ne4 {[%clk 0:00:21]}  Rxd5 {[%clk 0:00:25]} 39. cxd5 {[%clk 0:00:20]}  Rxd5 {[%clk 0:00:25]} 40. Re1 {[%clk 0:00:12]}  Qd7 {[%clk 0:00:25]} 41. Nc3 {[%clk 0:00:10]}  Rxd3 {[%clk 0:00:24]} 42. Rxe5 {[%clk 0:00:11]}  Bd6 {[%clk 0:00:24]} 43. Re6 {[%clk 0:00:11]}  Qf7 {[%clk 0:00:22]} 44. Ne4 {[%clk 0:00:10]}  Bxg3 {[%clk 0:00:20]} 45. fxg3 {[%clk 0:00:07]}  Nxg3 {[%clk 0:00:20]} 46. Qg2 {[%clk 0:00:05]}  Nxf5 {[%clk 0:00:16]} 47. Nf6+ {[%clk 0:00:05]}  Qxf6 {[%clk 0:00:10]} 48. Rxf6 {[%clk 0:00:05]}  Rg3 {[%clk 0:00:11]} 49. Rxf5 {[%clk 0:00:05]}  Rxg2+ {[%clk 0:00:10]} 50. Kxg2 {[%clk 0:00:06]} 1-0


[Site "https://www.chess.com"]

[Event "Titled Tuesday Blitz May 23 Early 2023"]
[White "Galchenko, Matvey"]
[Black "Bryakin, Mikhail"]
[WhiteFideId "24175480"]
[BlackFideId "4165314"]
[WhiteElo "2423"]
[BlackElo "2467"]
[Result "1/2-1/2"]
[Round "10"]
[TimeControl "180+2"]
[Date "2023.05.23"]
[WhiteClock "0:00:02"]
[BlackClock "0:00:15"]

1. e4 {[%clk 0:02:53]}  Nf6 {[%clk 0:02:48]} 2. e5 {[%clk 0:02:52]}  Nd5 {[%clk 0:02:49]} 3. d4 {[%clk 0:02:53]}  d6 {[%clk 0:02:49]} 4. Nf3 {[%clk 0:02:53]}  Bg4 {[%clk 0:02:44]} 5. Be2 {[%clk 0:02:53]}  e6 {[%clk 0:02:40]} 6. c4 {[%clk 0:02:51]}  Nb6 {[%clk 0:02:40]} 7. O-O {[%clk 0:02:51]}  dxe5 {[%clk 0:02:28]} 8. Nxe5 {[%clk 0:02:49]}  Bxe2 {[%clk 0:02:28]} 9. Qxe2 {[%clk 0:02:50]}  N8d7 {[%clk 0:02:25]} 10. Nf3 {[%clk 0:02:39]}  Be7 {[%clk 0:02:22]} 11. Nc3 {[%clk 0:02:39]}  O-O {[%clk 0:02:22]} 12. Bf4 {[%clk 0:02:39]}  Bd6 {[%clk 0:02:20]} 13. Bg5 {[%clk 0:02:37]}  Be7 {[%clk 0:02:16]} 14. Bxe7 {[%clk 0:02:21]}  Qxe7 {[%clk 0:02:17]} 15. c5 {[%clk 0:02:21]}  Nc8 {[%clk 0:02:17]} 16. b4 {[%clk 0:02:16]}  Nf6 {[%clk 0:02:15]} 17. Rfe1 {[%clk 0:02:13]}  Qd8 {[%clk 0:02:15]} 18. Qb5 {[%clk 0:02:07]}  Rb8 {[%clk 0:02:11]} 19. Rad1 {[%clk 0:01:58]}  Ne7 {[%clk 0:02:11]} 20. Ne5 {[%clk 0:01:48]}  Ned5 {[%clk 0:02:07]} 21. Qc4 {[%clk 0:01:47]}  Nxc3 {[%clk 0:02:03]} 22. Qxc3 {[%clk 0:01:48]}  Qd5 {[%clk 0:02:03]} 23. a4 {[%clk 0:01:45]}  a6 {[%clk 0:01:58]} 24. h3 {[%clk 0:01:36]}  Rfd8 {[%clk 0:01:57]} 25. Qg3 {[%clk 0:01:19]}  b5 {[%clk 0:01:37]} 26. axb5 {[%clk 0:01:11]}  Rxb5 {[%clk 0:01:26]} 27. Qa3 {[%clk 0:01:10]}  Ra8 {[%clk 0:01:25]} 28. Qa4 {[%clk 0:01:03]}  c6 {[%clk 0:01:21]} 29. Qa3 {[%clk 0:00:53]}  a5 {[%clk 0:01:18]} 30. bxa5 {[%clk 0:00:53]}  Raxa5 {[%clk 0:01:17]} 31. Qg3 {[%clk 0:00:53]}  h6 {[%clk 0:01:10]} 32. Nf3 {[%clk 0:00:52]}  Rb2 {[%clk 0:01:04]} 33. Rb1 {[%clk 0:00:31]}  Raa2 {[%clk 0:00:56]} 34. Rxb2 {[%clk 0:00:31]}  Rxb2 {[%clk 0:00:56]} 35. Qf4 {[%clk 0:00:23]}  Qd7 {[%clk 0:00:34]} 36. Ra1 {[%clk 0:00:20]}  Qb7 {[%clk 0:00:33]} 37. Ne5 {[%clk 0:00:18]}  Rb1+ {[%clk 0:00:32]} 38. Rxb1 {[%clk 0:00:19]}  Qxb1+ {[%clk 0:00:33]} 39. Kh2 {[%clk 0:00:20]}  Qb7 {[%clk 0:00:30]} 40. Qf3 {[%clk 0:00:19]}  Nd5 {[%clk 0:00:31]} 41. Qg3 {[%clk 0:00:18]}  Qc7 {[%clk 0:00:23]} 42. Nc4 {[%clk 0:00:15]}  Qxg3+ {[%clk 0:00:22]} 43. Kxg3 {[%clk 0:00:16]}  f6 {[%clk 0:00:22]} 44. Na5 {[%clk 0:00:16]}  Ne7 {[%clk 0:00:22]} 45. Kf4 {[%clk 0:00:16]}  g5+ {[%clk 0:00:22]} 46. Ke4 {[%clk 0:00:16]}  Kf7 {[%clk 0:00:22]} 47. f4 {[%clk 0:00:13]}  Ke8 {[%clk 0:00:19]} 48. fxg5 {[%clk 0:00:13]}  hxg5 {[%clk 0:00:20]} 49. Nc4 {[%clk 0:00:12]}  Kd7 {[%clk 0:00:20]} 50. Ne3 {[%clk 0:00:11]}  Ng6 {[%clk 0:00:16]} 51. g3 {[%clk 0:00:10]}  f5+ {[%clk 0:00:14]} 52. Kf3 {[%clk 0:00:08]}  Ke7 {[%clk 0:00:15]} 53. Nc4 {[%clk 0:00:05]}  Kf6 {[%clk 0:00:15]} 54. Na5 {[%clk 0:00:05]}  Ne7 {[%clk 0:00:16]} 55. h4 {[%clk 0:00:05]}  Kg6 {[%clk 0:00:16]} 56. hxg5 {[%clk 0:00:03]}  Kxg5 {[%clk 0:00:17]} 57. Nc4 {[%clk 0:00:04]}  Ng6 {[%clk 0:00:14]} 58. Na5 {[%clk 0:00:02]}  Ne7 {[%clk 0:00:14]} 59. Nc4 {[%clk 0:00:02]}  Ng6 {[%clk 0:00:14]} 60. Na5 {[%clk 0:00:02]}  Ne7 {[%clk 0:00:15]} 1/2-1/2


[Site "https://www.chess.com"]